fUST/lending_fUST_20250821
["ID","MTS","AMOUNT","RATE_DAILY","PERIOD"]
[380430972,1755759055054,-436.68242575,0.00022191,3]
[380430973,1755759055063,-594.38,0.00022191,3]
[380430974,1755759055072,-480.0,0.00022191,3]
[380430975,1755759055081,-480.0,0.00022191,3]
[380430976,1755759055091,-480.0,0.00022191,3]
[380430977,1755759055101,-679.89,0.00022191,3]
[380430978,1755759055110,-1188.31,0.00022191,3]
[380430979,1755759055120,-500.0,0.00022191,3]
[380430980,1755759055129,-195.52301378,0.00022191,3]
[380430981,1755759055138,-480.0,0.00022191,3]
[380430982,1755759055148,-789.7,0.00022191,3]
[380430983,1755759055158,-577.86051183,0.00022191,3]
[380430984,1755759055167,-480.0,0.00022191,3]
[380430985,1755759055177,-480.0,0.00022191,3]
[380430986,1755759055187,-480.0,0.00022191,3]
[380430987,1755759055196,-480.0,0.00022191,3]
[380430988,1755759055205,-480.0,0.00022191,3]
[380430989,1755759055215,-832.24,0.00022191,3]
[380430990,1755759055225,-663.89,0.00022191,3]
[380430991,1755759055235,-480.0,0.00022191,3]
[380430992,1755759055244,-480.0,0.00022191,3]
[380430993,1755759055255,-441.61432537,0.00022191,3]
[380430994,1755759055265,-715.77,0.00022191,3]
[380430995,1755759055275,-480.0,0.00022191,3]
[380430996,1755759055284,-480.0,0.00022191,3]
[380430997,1755759055293,-480.0,0.00022191,3]
[380430998,1755759055303,-480.0,0.00022191,3]
[380430999,1755759055312,-972.12577664,0.00022203,2]
[380431000,1755759055323,-494.26723251,0.00022322,2]
[380431001,1755759055332,-160.0,0.00022326,2]
[380431002,1755759055342,-217.0,0.00022354,2]
[380431003,1755759055351,-217.0,0.0002236,2]
[380431004,1755759055360,-1182.78334466,0.00022365,2]
[380431005,1755759055370,-937.59205202,0.00022365,2]
[380431011,1755759355762,300.0,0.00027,120]
[380431012,1755759370965,300.0,0.00027,120]
[380431013,1755759632560,10000.0,0.00019019,2]
[380431014,1755759706982,161.315707,0.00013699,2]
[380431015,1755759796942,1000.0,0.00019011,2]
[380431016,1755759838071,251.7691864,0.00019011,2]
[380431017,1755759976856,-306.03199506,0.00019599,2]
[380431018,1755759976888,-1200.0,0.00019898,2]
[380431019,1755759976916,-1200.0,0.00019899,2]
[380431020,1755759977146,-4573.18261626,0.000199,2]
[380431021,1755759977301,-853.63476748,0.000199,2]
[380431022,1755760002775,3955.5573082,0.000199,2]
[380431023,1755760008116,-300.0,0.00019983,2]
[380431024,1755760008136,-300.0,0.00019984,2]
[380431025,1755760008158,-300.0,0.00019984,2]
[380431026,1755760008179,-300.0,0.00019984,2]
[380431027,1755760008200,-205.0,0.00019984,2]
[380431028,1755760008220,-500.0,0.0002,2]
[380431029,1755760008241,-500.0,0.00020085,2]
[380431030,1755760008262,-1431.0407088,0.00020085,2]
[380431031,1755760011194,4337.17315684,0.000199,2]
[380431032,1755760011217,662.82684316,0.000199,2]
[380431033,1755760019287,1044.4426918,0.000199,2]
[380431034,1755760027774,5000.0,0.000199,2]
[380431035,1755760043825,3292.73046504,0.000199,2]
[380431036,1755760043848,1707.26953496,0.000199,2]
[380431037,1755760045087,-300.0,0.00020084,2]
[380431038,1755760045109,-11283.30038114,0.00020085,2]
[380431039,1755760045131,-500.0,0.00020085,2]
[380431040,1755760045152,-1000.0,0.00020085,2]
[380431041,1755760045175,-1000.0,0.00020085,2]
[380431042,1755760045196,-1000.0,0.00020085,2]
[380431043,1755760045222,-624.0,0.00020085,2]
[380431044,1755760045247,-151.0,0.00020085,2]
[380431045,1755760045268,-2183.31810187,0.00020085,2]
[380431046,1755760045288,-151.0,0.00020085,2]
[380431047,1755760045311,-151.0,0.00020085,2]
[380431048,1755760045331,-151.0,0.00020085,2]
[380431049,1755760045351,-19187.29552238,0.00020085,2]
[380431050,1755760045372,-151.0,0.00020085,2]
[380431051,1755760045393,-151.0,0.00020085,2]
[380431052,1755760045413,-151.0,0.00020085,2]
[380431053,1755760045434,-300.0,0.00020085,2]
[380431054,1755760045455,-151.0,0.00020085,2]
[380431055,1755760045475,-151.0,0.00020085,2]
[380431056,1755760045495,-300.0,0.00020085,2]
[380431057,1755760045515,-151.0,0.00020085,2]
[380431058,1755760045536,-455.69618558,0.00020085,2]
[380431059,1755760045556,-300.0,0.00020085,2]
[380431060,1755760045577,-151.0,0.00020085,2]
[380431061,1755760045596,-300.0,0.00020085,2]
[380431062,1755760045617,-151.0,0.00020085,2]
[380431063,1755760045638,-151.0,0.00020085,2]
[380431064,1755760045658,-300.0,0.00020085,2]
[380431065,1755760045679,-151.0,0.00020085,2]
[380431066,1755760045699,-151.0,0.00020085,2]
[380431067,1755760045720,-151.0,0.00020085,2]
[380431068,1755760045739,-300.0,0.00020085,2]
[380431069,1755760045760,-151.0,0.00020085,2]
[380431070,1755760045781,-151.0,0.00020085,2]
[380431071,1755760045802,-151.0,0.00020085,2]
[380431072,1755760045821,-220.12329846,0.00020085,2]
[380431073,1755760045842,-151.0,0.00020085,2]
[380431074,1755760045860,-151.0,0.00020085,2]
[380431075,1755760045879,-151.0,0.00020085,2]
[380431076,1755760045897,-151.0,0.00020085,2]
[380431077,1755760045917,-151.0,0.00020085,2]
[380431078,1755760045943,-151.0,0.00020085,2]
[380431079,1755760045965,-151.0,0.00020085,2]
[380431080,1755760045986,-151.0,0.00020085,2]
[380431081,1755760046007,-151.0,0.00020085,2]
[380431082,1755760046033,-151.0,0.00020085,2]
[380431083,1755760046056,-151.0,0.00020085,2]
[380431084,1755760046077,-151.0,0.00020085,2]
[380431085,1755760046097,-151.0,0.00020085,2]
[380431086,1755760046118,-194.24099703,0.00020085,2]
[380431087,1755760046137,-151.0,0.00020085,2]
[380431088,1755760046159,-151.0,0.00020085,2]
[380431089,1755760046181,-300.0,0.00020085,2]
[380431090,1755760046202,-151.0,0.00020085,2]
[380431091,1755760046223,-300.0,0.00020085,2]
[380431092,1755760046245,-151.0,0.00020085,2]
[380431093,1755760046265,-151.0,0.00020085,2]
[380431094,1755760046286,-300.0,0.00020085,2]
[380431095,1755760046307,-300.0,0.00020085,2]
[380431096,1755760046328,-151.0,0.00020085,2]
[380431097,1755760046349,-300.0,0.00020085,2]
[380431098,1755760046370,-151.0,0.00020085,2]
[380431099,1755760046390,-300.0,0.00020085,2]
[380431100,1755760046412,-151.0,0.00020085,2]
[380431101,1755760046433,-300.0,0.00020085,2]
[380431102,1755760046455,-151.0,0.00020085,2]
[380431103,1755760046476,-300.0,0.00020085,2]
[380431104,1755760046496,-300.0,0.00020085,2]
[380431105,1755760046516,-300.0,0.00020085,2]
[380431106,1755760046536,-323.29850312,0.00020085,2]
[380431107,1755760046556,-397.20899538,0.00020091,2]
[380431108,1755760046577,-14582.0117091,0.00020097,2]
[380431109,1755760046599,-500.0,0.000201,2]
[380431110,1755760046618,-500.0,0.000201,2]
[380431111,1755760046638,-501.27720171,0.000201,2]
[380431112,1755760046658,-500.0,0.000201,2]
[380431113,1755760046678,-500.0,0.000201,2]
[380431114,1755760046698,-7108.0174889,0.00020314,2]
[380431115,1755760046719,-500.0,0.00020359,2]
[380431116,1755760046740,-500.0,0.00020547,2]
[380431117,1755760046760,-150.0,0.00020548,2]
[380431118,1755760046980,-500.0,0.00020633,2]
[380431119,1755760047009,-1000.0,0.00020648,2]
[380431120,1755760047033,-509.5192411,0.00020648,2]
[380431121,1755760047057,-5426.81738367,0.00020835,2]
[380431122,1755760047079,-3929.0,0.00020859,2]
[380431123,1755760047103,-604.0,0.00020963,2]
[380431124,1755760047124,-7209.52870869,0.0002099,2]
[380431125,1755760047145,-604.0,0.00021016,2]
[380431126,1755760047166,-500.0,0.00021095,2]
[380431127,1755760047188,-604.0,0.00021101,2]
[380431128,1755760047209,-604.0,0.00021125,2]
[380431129,1755760047231,-604.0,0.00021196,2]
[380431130,1755760047251,-1500.0,0.00021196,2]
[380431131,1755760047274,-604.0,0.00021296,2]
[380431132,1755760047295,-604.0,0.00021438,2]
[380431133,1755760047315,-1383.34,0.00021444,10]
[380431134,1755760047338,-151.0,0.00021454,2]
[380431135,1755760047359,-19897.22545671,0.00021454,2]
[380431136,1755760047379,-528.88070896,0.00021572,2]
[380431137,1755760047399,-160.0,0.00021572,2]
[380431138,1755760047421,-215.86710461,0.00021584,2]
[380431139,1755760047442,-844.19128999,0.00021584,2]
[380431140,1755760047463,-216.95272161,0.00021584,2]
[380431141,1755760047484,-160.0,0.00021584,2]
[380431142,1755760047504,-160.0,0.00021584,2]
[380431143,1755760047526,-232.28399145,0.00021584,2]
[380431144,1755760047546,-376.00439007,0.00021584,2]
[380431145,1755760047568,-157.0,0.000216,3]
[380431146,1755760047590,-157.0,0.000216,3]
[380431147,1755760047610,-500.0,0.00021643,2]
[380431148,1755760047632,-873.0,0.00021711,3]
[380431149,1755760047656,-4868.31170483,0.00021717,2]
[380431150,1755760047681,-682.36994134,0.00021717,2]
[380431151,1755760047703,-604.0,0.00021721,2]
[380431152,1755760047724,-654.75,0.00021734,3]
[380431153,1755760047746,-1803.98999402,0.00021744,2]
[380431154,1755760047767,-436.5,0.00021761,3]
[380431155,1755760047788,-218.25,0.00021761,3]
[380431156,1755760047808,-300.0,0.00021761,2]
[380431157,1755760047830,-604.0,0.00021765,2]
[380431158,1755760047850,-251.15246198,0.00021772,2]
[380431159,1755760047871,-500.0,0.00021816,2]
[380431160,1755760047892,-500.0,0.00021816,2]
[380431161,1755760047913,-500.0,0.00021816,2]
[380431162,1755760047940,-500.0,0.00021816,2]
[380431163,1755760047963,-642.10341982,0.00021816,2]
[380431164,1755760047983,-500.0,0.00021816,2]
[380431165,1755760048007,-500.0,0.00021816,2]
[380431166,1755760048028,-221.85724094,0.00021816,2]
[380431167,1755760048049,-457.92113439,0.00021816,2]
[380431168,1755760048071,-500.0,0.00021816,2]
[380431169,1755760048094,-500.0,0.00021816,2]
[380431170,1755760048115,-500.0,0.00021816,2]
[380431171,1755760048141,-500.0,0.00021816,2]
[380431172,1755760048163,-500.0,0.00021816,2]
[380431173,1755760048190,-500.0,0.00021816,2]
[380431174,1755760048212,-500.0,0.00021816,2]
[380431175,1755760048235,-500.0,0.00021816,2]
[380431176,1755760048258,-500.0,0.00021816,2]
[380431177,1755760048282,-500.0,0.00021816,2]
[380431178,1755760048303,-500.0,0.00021816,2]
[380431179,1755760048325,-500.0,0.00021816,2]
[380431180,1755760048348,-500.0,0.00021816,2]
[380431181,1755760048371,-592.76873922,0.00021816,2]
[380431182,1755760048393,-648.95434874,0.00021816,2]
[380431183,1755760048415,-207.62583028,0.00021816,2]
[380431184,1755760048438,-300.38936782,0.00021816,2]
[380431185,1755760048459,-14437.79314956,0.00021817,2]
[380431186,1755760074335,150.0,0.00019178,30]
[380431187,1755760078465,1000.0,0.00027397,120]
[380431188,1755760079352,5065.02955815,0.000199,2]
[380431189,1755760095411,151.04536062,0.000199,2]
[380431191,1755760121171,264.80599692,0.00019716,2]
[380431230,1755760232583,-1200.0,0.00020834,2]
[380431232,1755760232595,-4822.0,0.00020835,2]
[380431234,1755760232604,-1070.02719335,0.00020835,2]
[380431255,1755760237300,465.7210543,0.00020096,2]
[380431267,1755760238515,-34.2789457,0.00020096,2]
[380431268,1755760238525,-500.0,0.00020644,2]
[380431269,1755760238534,-3995.00236474,0.00020835,2]
[380431270,1755760238543,-500.0,0.00021192,2]
[380431271,1755760238552,-300.0,0.0002156,2]
[380431272,1755760238562,-160.0,0.00021562,2]
[380431273,1755760238571,-844.19128999,0.00021562,2]
[380431274,1755760238581,-215.86710461,0.00021562,2]
[380431275,1755760238590,-216.95272161,0.00021562,2]
[380431276,1755760238603,-160.0,0.00021562,2]
[380431277,1755760238612,-232.28399145,0.00021562,2]
[380431278,1755760238622,-5000.0,0.00021589,2]
[380431279,1755760238632,-2595.52225022,0.00021717,2]
[380431280,1755760238641,-3245.54113656,0.00021717,2]
[380431281,1755760238651,-500.0,0.0002174,2]
[380431282,1755760238660,-5065.02955809,0.00021771,2]
[380431283,1755760238670,-19187.29552238,0.00021804,2]
[380431284,1755760238679,-151.0,0.00021804,2]
[380431285,1755760238688,-122.07430087,0.00021804,2]
[380431290,1755760240077,-28.92569913,0.00021804,2]
[380431291,1755760240087,-151.0,0.00021804,2]
[380431292,1755760240099,-151.0,0.00021804,2]
[380431293,1755760240108,-151.0,0.00021804,2]
[380431294,1755760240118,-205.19620638,0.00021804,2]
[380431295,1755760240127,-1152.78,0.00021807,10]
[380431296,1755760240137,-960.65,0.00021807,10]
[380431297,1755760240146,-800.54,0.00021807,10]
[380431298,1755760240155,-58563.36674503,0.00021817,2]
[380431300,1755760240359,-159910.33767536,0.00021817,2]
[380431301,1755760240370,-7258.72686576,0.00021817,2]
[380431302,1755760240389,-5526.52632854,0.00021817,2]
[380431325,1755760243544,-52309.48714469,0.00021817,2]
[380431326,1755760243555,-1526.14528952,0.00021817,2]
[380431327,1755760243567,-1906.34722188,0.00021817,2]
[380431328,1755760243582,-3931.84027084,0.00021817,2]
[380431329,1755760243594,-64629.42930882,0.00021817,2]
[380431330,1755760243603,-1000.0,0.00021817,2]
[380431331,1755760243613,-1400.0,0.00021861,2]
[380431332,1755760243623,-500.0,0.00021873,2]
[380431333,1755760243633,-604.0,0.00021881,2]
[380431334,1755760243642,-480.0,0.00021917,3]
[380431335,1755760243652,-480.0,0.00021917,3]
[380431336,1755760243661,-162.16467903,0.00021917,3]
[380431337,1755760243670,-160.0,0.00021917,3]
[380431338,1755760243680,-343.44075412,0.00021917,3]
[380431339,1755760243692,-347.8754355,0.00021917,3]
[380431340,1755760243702,-433.61932438,0.00021917,3]
[380431341,1755760243712,-480.0,0.00021917,3]
[380431342,1755760243721,-460.85574106,0.00021917,3]
[380431343,1755760243731,-480.0,0.00021917,3]
[380431344,1755760243740,-480.0,0.00021917,3]
[380431345,1755760243750,-367.65365141,0.00021917,3]
[380431371,1755760246559,2661.84954935,0.000199,2]
[380431374,1755760246585,2069.11091236,0.000199,2]
[380431421,1755760277030,7930.88908764,0.000199,2]
[380431422,1755760277052,10000.0,0.000199,2]
[380431423,1755760277075,10000.0,0.000199,2]
[380431424,1755760277098,10000.0,0.000199,2]
[380431425,1755760277119,10000.0,0.000199,2]
[380431426,1755760277141,10000.0,0.000199,2]
[380431427,1755760277163,10000.0,0.000199,2]
[380431428,1755760277184,10000.0,0.000199,2]
[380431429,1755760277204,10000.0,0.000199,2]
[380431430,1755760277226,10000.0,0.000199,2]
[380431431,1755760277247,10000.0,0.000199,2]
[380431432,1755760277267,10000.0,0.000199,2]
[380431433,1755760277288,10000.0,0.000199,2]
[380431434,1755760277309,10000.0,0.000199,2]
[380431435,1755760277330,10000.0,0.000199,2]
[380431436,1755760277354,10000.0,0.000199,2]
[380431437,1755760277376,10000.0,0.000199,2]
[380431438,1755760277398,10000.0,0.000199,2]
[380431439,1755760277420,10000.0,0.000199,2]
[380431440,1755760277442,10000.0,0.000199,2]
[380431441,1755760277464,10000.0,0.000199,2]
[380431442,1755760277487,10000.0,0.000199,2]
[380431443,1755760277508,10000.0,0.000199,2]
[380431444,1755760277531,10000.0,0.000199,2]
[380431445,1755760277552,10000.0,0.000199,2]
[380431446,1755760277576,10000.0,0.000199,2]
[380431447,1755760277598,10000.0,0.000199,2]
[380431448,1755760277619,10000.0,0.000199,2]
[380431449,1755760277641,10000.0,0.000199,2]
[380431450,1755760277663,10000.0,0.000199,2]
[380431451,1755760277685,10000.0,0.000199,2]
[380431452,1755760277706,10000.0,0.000199,2]
[380431453,1755760277728,10000.0,0.000199,2]
[380431454,1755760277750,10000.0,0.000199,2]
[380431455,1755760277772,10000.0,0.000199,2]
[380431456,1755760277793,10000.0,0.000199,2]
[380431457,1755760277815,10000.0,0.000199,2]
[380431458,1755760277837,10000.0,0.000199,2]
[380431459,1755760277859,10000.0,0.000199,2]
[380431460,1755760277882,10000.0,0.000199,2]
[380431461,1755760277904,10000.0,0.000199,2]
[380431462,1755760277926,10000.0,0.000199,2]
[380431463,1755760277948,10000.0,0.000199,2]
[380431464,1755760277970,10000.0,0.000199,2]
[380431465,1755760277996,10000.0,0.000199,2]
[380431466,1755760278019,10000.0,0.000199,2]
[380431467,1755760278041,10000.0,0.000199,2]
[380431468,1755760278064,10000.0,0.000199,2]
[380431469,1755760278090,10000.0,0.000199,2]
[380431470,1755760278113,10000.0,0.000199,2]
[380431471,1755760278138,10000.0,0.000199,2]
[380431472,1755760278162,10000.0,0.000199,2]
[380431473,1755760278186,10000.0,0.000199,2]
[380431474,1755760278210,10000.0,0.000199,2]
[380431475,1755760278233,10000.0,0.000199,2]
[380431476,1755760278256,10000.0,0.000199,2]
[380431477,1755760278279,10000.0,0.000199,2]
[380431478,1755760278302,10000.0,0.000199,2]
[380431479,1755760278326,10000.0,0.000199,2]
[380431480,1755760278350,10000.0,0.000199,2]
[380431481,1755760278373,10000.0,0.000199,2]
[380431482,1755760278400,10000.0,0.000199,2]
[380431483,1755760278423,10000.0,0.000199,2]
[380431484,1755760278447,10000.0,0.000199,2]
[380431485,1755760278470,10000.0,0.000199,2]
[380431486,1755760278493,10000.0,0.000199,2]
[380431487,1755760278517,10000.0,0.000199,2]
[380431488,1755760278542,10000.0,0.000199,2]
[380431489,1755760278565,10000.0,0.000199,2]
[380431490,1755760278589,10000.0,0.000199,2]
[380431491,1755760278614,10000.0,0.000199,2]
[380431492,1755760278639,10000.0,0.000199,2]
[380431493,1755760278662,10000.0,0.000199,2]
[380431494,1755760278685,10000.0,0.000199,2]
[380431495,1755760278708,10000.0,0.000199,2]
[380431496,1755760278731,10000.0,0.000199,2]
[380431497,1755760278754,10000.0,0.000199,2]
[380431498,1755760278777,1933.23816463,0.000199,2]
[380431499,1755760411320,4573.26177974,0.000199,2]
[380431500,1755760422389,524.84430903,0.00019717,2]
[380431501,1755760467998,-5000.0,0.0002014,2]
[380431502,1755760468018,-7985.9418379,0.00020343,2]
[380431503,1755760468039,-724.1279786,0.00020538,2]
[380431504,1755760468061,-1004.1404069,0.00020844,2]
[380431505,1755760468085,-300.0,0.00021136,2]
[380431506,1755760468107,-2144.71909308,0.00021137,2]
[380431507,1755760468128,-203.66712111,0.00021137,2]
[380431508,1755760468151,-2271.08196896,0.00021137,2]
[380431509,1755760468174,-5000.0,0.00021237,2]
[380431510,1755760468195,-160.0,0.00021446,2]
[380431511,1755760468217,-160.0,0.00021446,2]
[380431512,1755760468238,-160.0,0.00021446,2]
[380431513,1755760468262,-160.0,0.00021446,2]
[380431514,1755760468282,-160.0,0.00021446,2]
[380431515,1755760468303,-1200.0,0.00021552,2]
[380431516,1755760468325,-160.0,0.00021553,2]
[380431517,1755760468346,-215.86710461,0.00021553,2]
[380431518,1755760468366,-844.19128999,0.00021553,2]
[380431519,1755760468387,-160.0,0.00021553,2]
[380431520,1755760468407,-216.95272161,0.00021553,2]
[380431521,1755760468428,-232.28399145,0.00021553,2]
[380431522,1755760468450,-199.0,0.00021707,10]
[380431523,1755760468470,-509.25,0.00021707,3]
[380431524,1755760468491,-1032.61,0.00021707,10]
[380431525,1755760468512,-254.62,0.00021707,3]
[380431526,1755760468534,-860.51,0.00021707,10]
[380431527,1755760468555,-763.89,0.00021707,3]
[380431528,1755760468576,-717.09,0.00021707,10]
[380431529,1755760472028,199.0,0.00021607,10]
[380431530,1755760473096,39269.59986668,0.00021617,2]
[380431531,1755760473336,460.99492764,0.00021716,2]
[380431532,1755760473367,565.86319325,0.00021716,2]
[380431533,1755760473417,161.99123715,0.00021716,2]
[380431534,1755760473485,5000.0,0.00021717,2]
[380431535,1755760476778,597.57,0.00021707,10]
[380431536,1755760477891,171.18194807,0.00020744,2]
[380431537,1755760481330,5000.0,0.00021717,2]
[380431538,1755760482117,-370000.0,0.00021717,2]
[380431539,1755760482139,-2163.69409104,0.00021717,2]
[380431540,1755760482836,171.18194806,0.00021617,2]
[380431541,1755760489570,5000.0,0.000218,2]
[380431542,1755760505778,5000.0,0.000218,2]
[380431554,1755760520028,168.0,0.00021585,2]
[380431555,1755760521409,5000.0,0.000218,2]
[380431556,1755760526315,168.0,0.00020632,2]
[380431557,1755760528802,168.0,0.00021222,2]
[380431558,1755760537326,5000.0,0.000218,2]
[380431559,1755760541527,1439.66461297,0.00021717,2]
[380431560,1755760548974,469.4662772,0.0002168,2]
[380431561,1755760552005,500.0,0.00021716,2]
[380431562,1755760552043,339.92104935,0.00021716,2]
[380431563,1755760552081,473.20504275,0.00021716,2]
[380431564,1755760552111,500.0,0.00021716,2]
[380431565,1755760552141,500.0,0.00021716,2]
[380431566,1755760552169,201.39602192,0.00021716,2]
[380431567,1755760552201,499.58130422,0.00021716,2]
[380431568,1755760552227,500.0,0.00021716,2]
[380431569,1755760552258,500.0,0.00021716,2]
[380431570,1755760552293,500.0,0.00021716,2]
[380431571,1755760552320,500.0,0.00021716,2]
[380431572,1755760552346,500.0,0.00021716,2]
[380431573,1755760552382,500.0,0.00021716,2]
[380431574,1755760552406,219.01276025,0.00021716,2]
[380431575,1755760552437,500.0,0.00021716,2]
[380431576,1755760552465,500.0,0.00021716,2]
[380431577,1755760552491,500.0,0.00021716,2]
[380431578,1755760552517,500.0,0.00021716,2]
[380431579,1755760552544,500.0,0.00021716,2]
[380431580,1755760552592,500.0,0.00021716,2]
[380431581,1755760552781,-500.0,0.00021716,2]
[380431582,1755760552804,-500.0,0.00021716,2]
[380431583,1755760552826,-500.0,0.00021716,2]
[380431584,1755760552848,-500.0,0.00021716,2]
[380431585,1755760552872,-500.0,0.00021716,2]
[380431586,1755760552895,-500.0,0.00021716,2]
[380431587,1755760552918,-500.0,0.00021716,2]
[380431588,1755760552941,-214.2183953,0.00021716,2]
[380431589,1755760552964,-500.0,0.00021716,2]
[380431590,1755760552987,-500.0,0.00021716,2]
[380431591,1755760553007,-497.98,0.00021807,10]
[380431592,1755760553029,-72431.12787441,0.00021817,2]
[380431593,1755760584055,2968.6557466,0.000199,2]
[380431594,1755760584081,1479.69218716,0.000199,2]
[380431595,1755760723735,588.31626924,0.00019717,2]
[380431596,1755760764434,4298.62529786,0.000199,2]
[380431597,1755760764768,170.437797,0.00013699,2]
[380431598,1755760929300,3462.92844874,0.000199,2]
[380431599,1755760929324,1537.07155126,0.000199,2]
[380431600,1755760945142,300.0,0.00026,120]
[380431601,1755760945519,5000.0,0.000199,2]
[380431602,1755760946888,3462.92844874,0.000199,2]
[380431603,1755760946914,692.40933923,0.000199,2]
[380431604,1755760961742,5000.0,0.000199,2]
[380431605,1755760962715,300.0,0.00026,120]
[380431606,1755760965394,292.7207423,0.00019827,2]
[380431607,1755760978571,4014.86991847,0.000199,2]
[380431608,1755760978595,985.13008153,0.000199,2]
[380431609,1755760993912,5000.0,0.000199,2]
[380431610,1755761009476,4014.86991847,0.000199,2]
[380431611,1755761009502,985.13008153,0.000199,2]
[380431612,1755761024970,392.21084616,0.00019717,2]
[380431613,1755761025170,5000.0,0.000199,2]
[380431614,1755761040932,3622.65907231,0.000199,2]
[380431615,1755761040956,1377.34092769,0.000199,2]
[380431616,1755761057098,5000.0,0.000199,2]
[380431617,1755761073126,3622.65907231,0.000199,2]
[380431618,1755761073151,1377.34092769,0.000199,2]
[380431619,1755761088839,5000.0,0.000199,2]
[380431620,1755761113157,3622.65907231,0.000199,2]
[380431621,1755761113182,154.35423364,0.000199,2]
[380431622,1755761113229,5000.0,0.000199,2]
[380431623,1755761129344,4845.64576636,0.000199,2]
[380431624,1755761129370,154.35423364,0.000199,2]
[380431625,1755761144922,5000.0,0.000199,2]
[380431626,1755761161347,4845.64576636,0.000199,2]
[380431627,1755761161371,154.35423364,0.000199,2]
[380431628,1755761177251,5000.0,0.000199,2]
[380431629,1755761192808,4845.64576636,0.000199,2]
[380431633,1755761238366,-4663.9107234,0.00019788,2]
[380431634,1755761238505,-672.1785532,0.00019788,2]
[380431635,1755761245119,-154.35423364,0.000199,2]
[380431636,1755761245139,-160.70284741,0.00020148,5]
[380431637,1755761245159,-169.00599801,0.00020148,5]
[380431638,1755761245180,-1000.0,0.00020273,2]
[380431639,1755761245203,-300.0,0.00020651,2]
[380431640,1755761245225,-1200.0,0.00020652,2]
[380431641,1755761245245,-1200.0,0.00020652,2]
[380431642,1755761245267,-300.0,0.00020653,2]
[380431643,1755761245287,-300.0,0.00020653,2]
[380431644,1755761245309,-300.0,0.00020653,2]
[380431645,1755761245329,-5732.5895922,0.00020655,2]
[380431646,1755761245350,-780.955178,0.00020766,2]
[380431647,1755761245370,-159.23804156,0.00020771,5]
[380431648,1755761245390,-169.005998,0.00020771,5]
[380431649,1755761245410,-10000.0,0.0002081,2]
[380431650,1755761245430,-13686.87217685,0.00021075,2]
[380431651,1755761245453,-168.0,0.00021075,2]
[380431652,1755761245473,-376.00439007,0.00021376,2]
[380431653,1755761245492,-159.23804156,0.00021414,5]
[380431654,1755761245512,-153.0,0.00021589,2]
[380431655,1755761245532,-153.0,0.00021589,2]
[380431656,1755761245554,-168.0,0.0002164,2]
[380431657,1755761245574,-791.012461,0.00021679,2]
[380431658,1755761245597,-168.0,0.00021691,2]
[380431659,1755761245622,-153.0,0.000217,2]
[380431660,1755761245646,-199.0,0.00021707,10]
[380431661,1755761245667,-2142.35612418,0.00021717,2]
[380431662,1755761245690,-3777.01330569,0.00021771,2]